Workbook

Sheet Raw Data
A1: 58
A2: 306 | B2: 257 | C2: 267 | D2: 405 | E2: 212 | G2: BM1 | H2: =(A2-$B2)/$B2 -> 0.1906614786 | I2: =(B2-$B2)/$B2 -> 0 | J2: =(C2-$B2)/$B2 -> 0.03891050584 | K2: =(D2-$B2)/$B2 -> 0.5758754864 | L2: =(E2-$B2)/$B2 -> -0.1750972763
A3: 518 | B3: 450 | C3: 336 | D3: 255 | E3: 629 | G3: BM2 | H3: 0.1511111111 | I3: 0 | J3: -0.2533333333 | K3: -0.4333333333 | L3: 0.3977777778
A4: 366 | B4: 354 | C4: 328 | D4: 480 | E4: 415 | G4: BM3 | H4: 0.03389830508 | I4: =(B4-$B4)/$B4 -> 0 | J4: -0.07344632768 | K4: 0.3559322034 | L4: 0.1723163842
G5: BM4
A6: 614 | B6: 964 | C6: 692 | D6: 805 | E6: 671 | G6: BM5 | H6: -0.3630705394 | I6: 0 | J6: -0.2821576763 | K6: -0.1649377593 | L6: -0.3039419087
A7: 732 | B7: 263 | C7: 455 | D7: 273 | E7: 661 | G7: BM6 | H7: 1.783269962 | I7: 0 | J7: 0.7300380228 | K7: 0.03802281369 | L7: 1.513307985
A8: 431 | B8: 388 | C8: 373 | D8: 741 | E8: 507 | G8: BM7 | H8: 0.1108247423 | I8: 0 | J8: -0.03865979381 | K8: 0.9097938144 | L8: 0.3067010309
A9: 572 | B9: 639 | C9: 972 | D9: 742 | E9: 482 | G9: BM8 | H9: -0.1048513302 | I9: 0 | J9: 0.5211267606 | K9: 0.1611893584 | L9: -0.2456964006
A10: 396 | B10: 655 | C10: 585 | D10: 363 | E10: 364 | G10: BM9 | H10: -0.3954198473 | I10: 0 | J10: -0.106870229 | K10: -0.4458015267 | L10: -0.4442748092
A11: 565 | B11: 531 | C11: 493 | D11: 437 | E11: 556 | G11: BM10 | H11: 0.06403013183 | I11: 0 | J11: -0.07156308851 | K11: -0.1770244821 | L11: 0.04708097928
A12: 60
A13: 349 | B13: 445 | C13: 300 | D13: 209 | E13: 788 | G13: BM1 | H13: =(A13-$B13)/$B13 -> -0.2157303371 | I13: =(B13-$B13)/$B13 -> 0 | J13: =(C13-$B13)/$B13 -> -0.3258426966 | K13: =(D13-$B13)/$B13 -> -0.5303370787 | L13: =(E13-$B13)/$B13 -> 0.7707865169
A14: 542 | B14: 494 | C14: 339 | D14: 1175 | E14: 199 | G14: BM2 | H14: 0.0971659919 | I14: 0 | J14: -0.3137651822 | K14: 1.37854251 | L14: -0.5971659919
A15: 334 | B15: 417 | C15: 356 | D15: 409 | E15: 714 | G15: BM3 | H15: -0.1990407674 | I15: =(B15-$B15)/$B15 -> 0 | J15: =(C15-$B15)/$B15 -> -0.1462829736 | K15: =(D15-$B15)/$B15 -> -0.01918465228 | L15: =(E15-$B15)/$B15 -> 0.7122302158
G16: BM4
A17: 778 | B17: 676 | C17: 1047 | D17: 456 | E17: 73 | G17: BM5 | H17: 0.150887574 | I17: 0 | J17: 0.548816568 | K17: -0.325443787 | L17: -0.8920118343
A18: 321 | B18: 304 | C18: 618 | D18: 905 | E18: 181 | G18: BM6 | H18: 0.05592105263 | I18: 0 | J18: 1.032894737 | K18: 1.976973684 | L18: -0.4046052632
A19: 283 | B19: 405 | C19: 353 | D19: 489 | E19: 527 | G19: BM7 | H19: -0.3012345679 | I19: 0 | J19: -0.1283950617 | K19: 0.2074074074 | L19: 0.3012345679
A20: 1046 | B20: 911 | C20: 741 | D20: 383 | E20: 502 | G20: BM8 | H20: 0.1481888035 | I20: 0 | J20: -0.1866081229 | K20: -0.579582876 | L20: -0.4489571899
A21: 524 | B21: 677 | C21: 367 | D21: 208 | E21: 801 | G21: BM9 | H21: -0.2259970458 | I21: 0 | J21: -0.4579025111 | K21: -0.6927621861 | L21: 0.1831610044
A22: 323 | B22: 172 | C22: 380 | D22: 267 | E22: 712 | G22: BM10 | H22: 0.8779069767 | I22: 0 | J22: 1.209302326 | K22: 0.5523255814 | L22: 3.139534884
A23: 88
A24: 393 | B24: 707 | C24: 791 | D24: 462 | E24: 711 | G24: BM1 | H24: =(A24-$B24)/$B24 -> -0.4441301273 | I24: =(B24-$B24)/$B24 -> 0 | J24: =(C24-$B24)/$B24 -> 0.1188118812 | K24: =(D24-$B24)/$B24 -> -0.3465346535 | L24: =(E24-$B24)/$B24 -> 0.005657708628
A25: 904 | B25: 209 | C25: 599 | D25: 690 | E25: 270 | G25: BM2 | H25: 3.325358852 | I25: =(B25-$B25)/$B25 -> 0 | J25: 1.866028708 | K25: 2.301435407 | L25: 0.2918660287
A26: 276 | B26: 415 | C26: 543 | D26: 452 | E26: 442 | G26: BM3 | H26: -0.334939759 | I26: 0 | J26: 0.3084337349 | K26: 0.08915662651 | L26: 0.06506024096
G27: BM4
A28: 385 | B28: 467 | C28: 317 | D28: 165 | E28: 639 | G28: BM5 | H28: -0.1755888651 | I28: 0 | J28: -0.3211991435 | K28: -0.6466809422 | L28: 0.3683083512
A29: 702 | B29: 470 | C29: 413 | D29: 711 | E29: 397 | G29: BM6 | H29: 0.4936170213 | I29: 0 | J29: -0.1212765957 | K29: 0.5127659574 | L29: -0.1553191489
A30: 248 | B30: 518 | C30: 528 | D30: 402 | E30: 419 | G30: BM7 | H30: -0.5212355212 | I30: 0 | J30: 0.01930501931 | K30: -0.2239382239 | L30: -0.1911196911
A31: 1177 | B31: 484 | C31: 431 | D31: 1032 | E31: 601 | G31: BM8 | H31: 1.431818182 | I31: 0 | J31: -0.1095041322 | K31: 1.132231405 | L31: 0.2417355372
A32: 202 | B32: 820 | C32: 389 | D32: 254 | E32: 533 | G32: BM9 | H32: -0.7536585366 | I32: 0 | J32: -0.5256097561 | K32: -0.6902439024 | L32: -0.35
A33: 213 | B33: 411 | C33: 490 | D33: 333 | E33: 485 | G33: BM10 | H33: -0.4817518248 | I33: 0 | J33: 0.1922141119 | K33: -0.1897810219 | L33: 0.1800486618
A34: 89
A35: 927 | B35: 541 | C35: 790 | D35: 683 | E35: 684 | G35: BM1 | H35: =(A35-$B35)/$B35 -> 0.7134935305 | I35: =(B35-$B35)/$B35 -> 0 | J35: =(C35-$B35)/$B35 -> 0.46025878 | K35: =(D35-$B35)/$B35 -> 0.2624768946 | L35: =(E35-$B35)/$B35 -> 0.2643253235
A36: 413 | B36: 287 | C36: 657 | D36: 498 | E36: 372 | G36: BM2 | H36: 0.4390243902 | I36: 0 | J36: 1.289198606 | K36: 0.7351916376 | L36: 0.2961672474
G37: BM3
G38: BM4
A39: 989 | B39: 728 | C39: 768 | D39: 960 | E39: 557 | G39: BM5 | H39: 0.3585164835 | I39: =(B39-$B39)/$B39 -> 0 | J39: =(C39-$B39)/$B39 -> 0.05494505495 | K39: =(D39-$B39)/$B39 -> 0.3186813187 | L39: =(E39-$B39)/$B39 -> -0.2348901099
G40: BM6
A41: 235 | B41: 317 | C41: 545 | D41: 405 | E41: 506 | G41: BM7 | H41: -0.2586750789 | I41: 0 | J41: 0.7192429022 | K41: 0.2776025237 | L41: 0.596214511
A42: 1074 | B42: 975 | C42: 685 | D42: 865 | E42: 737 | G42: BM8 | H42: 0.1015384615 | I42: 0 | J42: -0.2974358974 | K42: -0.1128205128 | L42: -0.2441025641
A43: 473 | B43: 979 | C43: 411 | D43: 521 | E43: 551 | G43: BM9 | H43: -0.5168539326 | I43: 0 | J43: -0.5801838611 | K43: -0.4678243105 | L43: -0.4371807967
A44: 389 | B44: 674 | C44: 645 | D44: 569 | E44: 1090 | G44: BM10 | H44: -0.4228486647 | I44: 0 | J44: -0.04302670623 | K44: -0.1557863501 | L44: 0.6172106825
A45: 163
A46: 611 | B46: 806 | C46: 765 | D46: 912 | E46: 495 | G46: BM1 | H46: =(A46-$B46)/$B46 -> -0.2419354839 | I46: =(B46-$B46)/$B46 -> 0 | J46: =(C46-$B46)/$B46 -> -0.05086848635 | K46: =(D46-$B46)/$B46 -> 0.1315136476 | L46: =(E46-$B46)/$B46 -> -0.3858560794
A47: 680 | B47: 522 | C47: 476 | D47: 397 | E47: 351 | G47: BM2 | H47: 0.3026819923 | I47: 0 | J47: -0.08812260536 | K47: -0.2394636015 | L47: -0.3275862069
A48: 273 | B48: 178 | C48: 373 | D48: 439 | E48: 452 | G48: BM3 | H48: 0.5337078652 | I48: 0 | J48: 1.095505618 | K48: 1.466292135 | L48: 1.539325843
G49: BM4
A50: 1024 | B50: 956 | C50: 624 | D50: 431 | E50: 982 | G50: BM5 | H50: 0.07112970711 | I50: =(B50-$B50)/$B50 -> 0 | J50: =(C50-$B50)/$B50 -> -0.3472803347 | K50: =(D50-$B50)/$B50 -> -0.5491631799 | L50: =(E50-$B50)/$B50 -> 0.02719665272
G51: BM6
A52: 225 | B52: 114 | C52: 337 | D52: 397 | E52: 639 | G52: BM7 | H52: 0.9736842105 | I52: 0 | J52: 1.956140351 | K52: 2.48245614 | L52: 4.605263158
A53: 1161 | B53: 923 | C53: 777 | D53: 490 | E53: 586 | G53: BM8 | H53: 0.2578548212 | I53: 0 | J53: -0.1581798483 | K53: -0.4691224269 | L53: -0.3651137595
A54: 217 | B54: 643 | C54: 520 | D54: 707 | E54: 407 | G54: BM9 | H54: -0.6625194401 | I54: 0 | J54: -0.1912908243 | K54: 0.09953343701 | L54: -0.367029549
A55: 309 | B55: 359 | C55: 629 | D55: 728 | E55: 585 | G55: BM10 | H55: -0.139275766 | I55: 0 | J55: 0.7520891365 | K55: 1.027855153 | L55: 0.6295264624
A56: 214
G57: BM1
A58: 601 | B58: 517 | C58: 666 | D58: 399 | E58: 571 | G58: BM2 | H58: =(A58-$B58)/$B58 -> 0.1624758221 | I58: =(B58-$B58)/$B58 -> 0 | J58: =(C58-$B58)/$B58 -> 0.2882011605 | K58: =(D58-$B58)/$B58 -> -0.2282398453 | L58: =(E58-$B58)/$B58 -> 0.1044487427
A59: 319 | B59: 652 | C59: 231 | D59: 322 | E59: 542 | G59: BM3 | H59: -0.5107361963 | I59: 0 | J59: -0.6457055215 | K59: -0.5061349693 | L59: -0.1687116564
G60: BM4
A61: 457 | B61: 306 | C61: 521 | D61: 407 | E61: 226 | G61: BM5 | H61: 0.4934640523 | I61: 0 | J61: 0.7026143791 | K61: 0.3300653595 | L61: -0.2614379085
A62: 758 | B62: 922 | C62: 1284 | D62: 1007 | E62: 810 | G62: BM6 | H62: -0.1778741866 | I62: 0 | J62: 0.3926247289 | K62: 0.09219088937 | L62: -0.1214750542
A63: 218 | B63: 461 | C63: 295 | D63: 344 | E63: 622 | G63: BM7 | H63: -0.5271149675 | I63: 0 | J63: -0.3600867679 | K63: -0.2537960954 | L63: 0.3492407809
A64: 1015 | B64: 623 | C64: 1012 | D64: 926 | E64: 647 | G64: BM8 | H64: 0.6292134831 | I64: 0 | J64: 0.6243980738 | K64: 0.4863563403 | L64: 0.03852327448
A65: 584 | B65: 381 | C65: 275 | D65: 512 | E65: 467 | G65: BM9 | H65: 0.532808399 | I65: 0 | J65: -0.2782152231 | K65: 0.343832021 | L65: 0.2257217848
A66: 548 | B66: 639 | C66: 217 | D66: 584 | E66: 612 | G66: BM10 | H66: -0.1424100156 | I66: 0 | J66: -0.6604068858 | K66: -0.08607198748 | L66: -0.04225352113
A67: 219
A68: 720 | B68: 564 | C68: 929 | D68: 907 | E68: 635 | G68: BM1 | H68: =(A68-$B68)/$B68 -> 0.2765957447 | I68: =(B68-$B68)/$B68 -> 0 | J68: =(C68-$B68)/$B68 -> 0.6471631206 | K68: =(D68-$B68)/$B68 -> 0.6081560284 | L68: =(E68-$B68)/$B68 -> 0.1258865248
A69: 458 | B69: 668 | C69: 243 | D69: 488 | E69: 609 | G69: BM2 | H69: -0.3143712575 | I69: =(B69-$B69)/$B69 -> 0 | J69: -0.6362275449 | K69: -0.2694610778 | L69: -0.08832335329
A70: 349 | B70: 323 | C70: 294 | D70: 278 | E70: 307 | G70: BM3 | H70: 0.08049535604 | I70: 0 | J70: -0.08978328173 | K70: -0.1393188854 | L70: -0.04953560372
G71: BM4
A72: 331 | B72: 591 | C72: 364 | D72: 315 | E72: 491 | G72: BM5 | H72: -0.4399323181 | I72: 0 | J72: -0.3840947547 | K72: -0.4670050761 | L72: -0.1692047377
A73: 633 | B73: 673 | C73: 566 | D73: 550 | E73: 541 | G73: BM6 | H73: -0.05943536404 | I73: 0 | J73: -0.1589895988 | K73: -0.1827637444 | L73: -0.1961367013
A74: 598 | B74: 447 | C74: 761 | D74: 935 | E74: 469 | G74: BM7 | H74: 0.3378076063 | I74: =(B74-$B74)/$B74 -> 0 | J74: =(C74-$B74)/$B74 -> 0.7024608501 | K74: =(D74-$B74)/$B74 -> 1.091722595 | L74: =(E74-$B74)/$B74 -> 0.04921700224
A75: 408 | B75: 623 | C75: 310 | D75: 267 | E75: 589 | G75: BM8 | H75: -0.3451043339 | I75: 0 | J75: -0.5024077047 | K75: -0.5714285714 | L75: -0.05457463884
A76: 601 | B76: 434 | C76: 594 | D76: 484 | E76: 550 | G76: BM9 | H76: 0.3847926267 | I76: 0 | J76: 0.3686635945 | K76: 0.1152073733 | L76: 0.267281106
A77: 402 | B77: 178 | C77: 440 | D77: 277 | E77: 306 | G77: BM10 | H77: 1.258426966 | I77: 0 | J77: 1.471910112 | K77: 0.5561797753 | L77: 0.7191011236
A78: 292
G79: BM1
A80: 512 | B80: 334 | C80: 479 | D80: 494 | E80: 330 | G80: BM2 | H80: =(A80-$B80)/$B80 -> 0.5329341317 | I80: =(B80-$B80)/$B80 -> 0 | J80: =(C80-$B80)/$B80 -> 0.4341317365 | K80: =(D80-$B80)/$B80 -> 0.4790419162 | L80: =(E80-$B80)/$B80 -> -0.0119760479
A81: 316 | B81: 499 | C81: 425 | D81: 509 | E81: 210 | G81: BM3 | H81: -0.3667334669 | I81: 0 | J81: -0.1482965932 | K81: 0.02004008016 | L81: -0.5791583166
G82: BM4
A83: 803 | B83: 590 | C83: 531 | D83: 277 | E83: 903 | G83: BM5 | H83: 0.3610169492 | I83: 0 | J83: -0.1 | K83: -0.5305084746 | L83: 0.5305084746
A84: 736 | B84: 1039 | C84: 736 | D84: 1426 | E84: 458 | G84: BM6 | H84: -0.291626564 | I84: 0 | J84: -0.291626564 | K84: 0.3724735322 | L84: -0.5591915303
A85: 432 | B85: 422 | C85: 471 | D85: 509 | E85: 304 | G85: BM7 | H85: 0.02369668246 | I85: 0 | J85: 0.1161137441 | K85: 0.2061611374 | L85: -0.2796208531
A86: 764 | B86: 813 | C86: 835 | D86: 533 | E86: 1176 | G86: BM8 | H86: -0.06027060271 | I86: 0 | J86: 0.0270602706 | K86: -0.344403444 | L86: 0.4464944649
A87: 439 | B87: 395 | C87: 552 | D87: 220 | E87: 583 | G87: BM9 | H87: 0.1113924051 | I87: 0 | J87: 0.3974683544 | K87: -0.4430379747 | L87: 0.4759493671
A88: 498 | B88: 409 | C88: 472 | D88: 533 | E88: 533 | G88: BM10 | H88: 0.217603912 | I88: 0 | J88: 0.1540342298 | K88: 0.3031784841 | L88: 0.3031784841
A89: 345
A90: 499 | B90: 659 | C90: 661 | D90: 504 | E90: 603 | G90: BM1 | H90: =(A90-$B90)/$B90 -> -0.2427921093 | I90: =(B90-$B90)/$B90 -> 0 | J90: =(C90-$B90)/$B90 -> 0.003034901366 | K90: =(D90-$B90)/$B90 -> -0.2352048558 | L90: =(E90-$B90)/$B90 -> -0.08497723824
A91: 49 | B91: 541 | C91: 287 | D91: 458 | E91: 471 | G91: BM2 | H91: -0.9094269871 | I91: =(B91-$B91)/$B91 -> 0 | J91: =(C91-$B91)/$B91 -> -0.4695009242 | K91: =(D91-$B91)/$B91 -> -0.1534195933 | L91: =(E91-$B91)/$B91 -> -0.1293900185
A92: 393 | B92: 272 | C92: 227 | D92: 266 | E92: 302 | G92: BM3 | H92: 0.4448529412 | I92: 0 | J92: -0.1654411765 | K92: -0.02205882353 | L92: 0.1102941176
G93: BM4
A94: 441 | B94: 321 | C94: 419 | D94: 422 | E94: 250 | G94: BM5 | H94: 0.3738317757 | I94: 0 | J94: 0.3052959502 | K94: 0.3146417445 | L94: -0.2211838006
A95: 948 | B95: 1253 | C95: 1487 | D95: 1233 | E95: 1347 | G95: BM6 | H95: -0.2434158021 | I95: 0 | J95: 0.1867517957 | K95: -0.01596169194 | L95: 0.07501995211
A96: 688 | B96: 381 | C96: 189 | D96: 245 | E96: 291 | G96: BM7 | H96: 0.8057742782 | I96: 0 | J96: -0.5039370079 | K96: -0.3569553806 | L96: -0.2362204724
A97: 305 | B97: 545 | C97: 532 | D97: 676 | E97: 452 | G97: BM8 | H97: -0.4403669725 | I97: 0 | J97: -0.02385321101 | K97: 0.2403669725 | L97: -0.1706422018
A98: 517 | B98: 347 | C98: 501 | D98: 435 | E98: 571 | G98: BM9 | H98: 0.4899135447 | I98: 0 | J98: 0.4438040346 | K98: 0.2536023055 | L98: 0.6455331412
A99: 660 | B99: 182 | C99: 198 | D99: 262 | E99: 210 | G99: BM10 | H99: 2.626373626 | I99: 0 | J99: 0.08791208791 | K99: 0.4395604396 | L99: 0.1538461538
A100: 348
A101: 268 | B101: 253 | C101: 306 | D101: 341 | E101: 393 | G101: BM1 | H101: =(A101-$B101)/$B101 -> 0.05928853755 | I101: =(B101-$B101)/$B101 -> 0 | J101: =(C101-$B101)/$B101 -> 0.209486166 | K101: =(D101-$B101)/$B101 -> 0.347826087 | L101: =(E101-$B101)/$B101 -> 0.5533596838
A102: 696 | B102: 447 | C102: 230 | D102: 183 | E102: 878 | G102: BM2 | H102: 0.5570469799 | I102: 0 | J102: -0.485458613 | K102: -0.5906040268 | L102: 0.9642058166
A103: 544 | B103: 335 | C103: 271 | D103: 491 | E103: 652 | G103: BM3 | H103: 0.623880597 | I103: 0 | J103: -0.1910447761 | K103: 0.4656716418 | L103: 0.9462686567
G104: BM4
A105: 794 | B105: 1030 | C105: 1635 | D105: 1015 | E105: 468 | G105: BM5 | H105: -0.2291262136 | I105: 0 | J105: 0.5873786408 | K105: -0.0145631068 | L105: -0.545631068
A106: 904 | B106: 814 | C106: 753 | D106: 860 | E106: 726 | G106: BM6 | H106: 0.1105651106 | I106: 0 | J106: -0.07493857494 | K106: 0.05651105651 | L106: -0.1081081081
A107: 277 | B107: 308 | C107: 260 | D107: 384 | E107: 392 | G107: BM7 | H107: -0.1006493506 | I107: 0 | J107: -0.1558441558 | K107: 0.2467532468 | L107: 0.2727272727
A108: 362 | B108: 424 | C108: 293 | D108: 260 | E108: 539 | G108: BM8 | H108: -0.1462264151 | I108: 0 | J108: -0.3089622642 | K108: -0.3867924528 | L108: 0.2712264151
A109: 531 | B109: 497 | C109: 539 | D109: 672 | E109: 238 | G109: BM9 | H109: 0.06841046278 | I109: 0 | J109: 0.08450704225 | K109: 0.3521126761 | L109: -0.5211267606
A110: 124 | B110: 393 | C110: 214 | D110: 295 | E110: 211 | G110: BM10 | H110: -0.6844783715 | I110: 0 | J110: -0.4554707379 | K110: -0.2493638677 | L110: -0.4631043257
A111: 918
A112: 836 | B112: 943 | C112: 640 | D112: 519 | E112: 548 | G112: BM1 | H112: =(A112-$B112)/$B112 -> -0.1134676564 | I112: =(B112-$B112)/$B112 -> 0 | J112: =(C112-$B112)/$B112 -> -0.3213149523 | K112: =(D112-$B112)/$B112 -> -0.4496288441 | L112: =(E112-$B112)/$B112 -> -0.4188759279
A113: 358 | B113: 605 | C113: 997 | D113: 720 | E113: 773 | G113: BM2 | H113: -0.4082644628 | I113: 0 | J113: 0.6479338843 | K113: 0.1900826446 | L113: 0.2776859504
A114: 543 | B114: 361 | C114: 211 | D114: 385 | E114: 405 | G114: BM3 | H114: 0.5041551247 | I114: 0 | J114: -0.4155124654 | K114: 0.06648199446 | L114: 0.1218836565
G115: BM4
A116: 344 | B116: 468 | C116: 546 | D116: 686 | E116: 730 | G116: BM5 | H116: -0.264957265 | I116: =(B116-$B116)/$B116 -> 0 | J116: =(C116-$B116)/$B116 -> 0.1666666667 | K116: =(D116-$B116)/$B116 -> 0.4658119658 | L116: =(E116-$B116)/$B116 -> 0.5598290598
A117: 645 | B117: 470 | C117: 319 | D117: 323 | E117: 582 | G117: BM6 | H117: 0.3723404255 | I117: 0 | J117: -0.3212765957 | K117: -0.3127659574 | L117: 0.2382978723
A118: 632 | B118: 187 | C118: 230 | D118: 290 | E118: 305 | G118: BM7 | H118: 2.379679144 | I118: 0 | J118: 0.2299465241 | K118: 0.550802139 | L118: 0.6310160428
A119: 474 | B119: 604 | C119: 799 | D119: 746 | E119: 618 | G119: BM8 | H119: -0.2152317881 | I119: 0 | J119: 0.3228476821 | K119: 0.2350993377 | L119: 0.02317880795
A120: 413 | B120: 615 | C120: 447 | D120: 444 | E120: 453 | G120: BM9 | H120: -0.3284552846 | I120: 0 | J120: -0.2731707317 | K120: -0.2780487805 | L120: -0.2634146341
A121: 255 | B121: 248 | C121: 312 | D121: 388 | E121: 83 | G121: BM10 | H121: 0.02822580645 | I121: 0 | J121: 0.2580645161 | K121: 0.564516129 | L121: -0.6653225806
A122: 921
A123: 794 | B123: 448 | C123: 462 | D123: 560 | E123: 569 | G123: BM1 | H123: =(A123-$B123)/$B123 -> 0.7723214286 | I123: =(B123-$B123)/$B123 -> 0 | J123: =(C123-$B123)/$B123 -> 0.03125 | K123: =(D123-$B123)/$B123 -> 0.25 | L123: =(E123-$B123)/$B123 -> 0.2700892857
A124: 529 | B124: 21 | C124: 269 | D124: 120 | E124: 291 | G124: BM2 | H124: 24.19047619 | I124: =(B124-$B124)/$B124 -> 0 | J124: 11.80952381 | K124: 4.714285714 | L124: 12.85714286
A125: 242 | B125: 103 | C125: 303 | D125: 465 | E125: 177 | G125: BM3 | H125: 1.349514563 | I125: 0 | J125: 1.941747573 | K125: 3.514563107 | L125: 0.7184466019
G126: BM4
A127: 533 | B127: 833 | C127: 700 | D127: 468 | E127: 1315 | G127: BM5 | H127: -0.3601440576 | I127: 0 | J127: -0.1596638655 | K127: -0.4381752701 | L127: 0.5786314526
A128: 542 | B128: 654 | C128: 1008 | D128: 813 | E128: 396 | G128: BM6 | H128: -0.1712538226 | I128: 0 | J128: 0.5412844037 | K128: 0.2431192661 | L128: -0.3944954128
A129: 84 | B129: 93 | C129: 61 | D129: 339 | E129: 179 | G129: BM7 | H129: -0.09677419355 | I129: 0 | J129: -0.3440860215 | K129: 2.64516129 | L129: 0.9247311828
A130: 883 | B130: 999 | C130: 840 | D130: 572 | E130: 721 | G130: BM8 | H130: -0.1161161161 | I130: 0 | J130: -0.1591591592 | K130: -0.4274274274 | L130: -0.2782782783
A131: 720 | B131: 1138 | C131: 680 | D131: 805 | E131: 751 | G131: BM9 | H131: -0.3673110721 | I131: 0 | J131: -0.4024604569 | K131: -0.2926186292 | L131: -0.3400702988
A132: 173 | B132: 212 | C132: 178 | D132: 359 | E132: 98 | G132: BM10 | H132: -0.1839622642 | I132: 0 | J132: -0.1603773585 | K132: 0.6933962264 | L132: -0.5377358491

Sheet Calculater DF-F
A1: BM1 | B1: OF | C1: SHAM | D1: T1 | E1: T2 | F1: T3
A2: 58 | B2: ='Raw Data'!H2 -> 0.1906614786 | C2: ='Raw Data'!I2 -> 0 | D2: ='Raw Data'!J2 -> 0.03891050584 | E2: ='Raw Data'!K2 -> 0.5758754864 | F2: ='Raw Data'!L2 -> -0.1750972763
A3: 60 | B3: ='Raw Data'!H13 -> -0.2157303371 | C3: ='Raw Data'!I13 -> 0 | D3: ='Raw Data'!J13 -> -0.3258426966 | E3: ='Raw Data'!K13 -> -0.5303370787 | F3: ='Raw Data'!L13 -> 0.7707865169
A4: 88 | B4: ='Raw Data'!H24 -> -0.4441301273 | C4: ='Raw Data'!I24 -> 0 | D4: ='Raw Data'!J24 -> 0.1188118812 | E4: ='Raw Data'!K24 -> -0.3465346535 | F4: ='Raw Data'!L24 -> 0.005657708628
A5: 89 | B5: ='Raw Data'!H35 -> 0.7134935305 | C5: ='Raw Data'!I35 -> 0 | D5: ='Raw Data'!J35 -> 0.46025878 | E5: ='Raw Data'!K35 -> 0.2624768946 | F5: ='Raw Data'!L35 -> 0.2643253235
A6: 163 | B6: ='Raw Data'!H46 -> -0.2419354839 | C6: ='Raw Data'!I46 -> 0 | D6: ='Raw Data'!J46 -> -0.05086848635 | E6: ='Raw Data'!K46 -> 0.1315136476 | F6: ='Raw Data'!L46 -> -0.3858560794
A7: 214
A8: 219 | B8: ='Raw Data'!H68 -> 0.2765957447 | C8: ='Raw Data'!I68 -> 0 | D8: ='Raw Data'!J68 -> 0.6471631206 | E8: ='Raw Data'!K68 -> 0.6081560284 | F8: ='Raw Data'!L68 -> 0.1258865248
A9: 292
A10: 345 | B10: ='Raw Data'!H90 -> -0.2427921093 | C10: ='Raw Data'!I90 -> 0 | D10: ='Raw Data'!J90 -> 0.003034901366 | E10: ='Raw Data'!K90 -> -0.2352048558 | F10: ='Raw Data'!L90 -> -0.08497723824
A11: 348 | B11: ='Raw Data'!H101 -> 0.05928853755 | C11: ='Raw Data'!I101 -> 0 | D11: ='Raw Data'!J101 -> 0.209486166 | E11: ='Raw Data'!K101 -> 0.347826087 | F11: ='Raw Data'!L101 -> 0.5533596838
A12: 918 | B12: ='Raw Data'!H112 -> -0.1134676564 | C12: ='Raw Data'!I112 -> 0 | D12: ='Raw Data'!J112 -> -0.3213149523 | E12: ='Raw Data'!K112 -> -0.4496288441 | F12: ='Raw Data'!L112 -> -0.4188759279
A13: 921 | B13: ='Raw Data'!H123 -> 0.7723214286 | C13: ='Raw Data'!I123 -> 0 | D13: ='Raw Data'!J123 -> 0.03125 | E13: ='Raw Data'!K123 -> 0.25 | F13: ='Raw Data'!L123 -> 0.2700892857
D14: =_xlfn.T.TEST($C2:$C13,D2:D13,2,1) -> 0.4223165529 | E14: =_xlfn.T.TEST($C2:$C13,E2:E13,2,1) -> 0.6552369051 | F14: =_xlfn.T.TEST($C2:$C13,F2:F13,2,1) -> 0.466946061
A15: BM2
A16: 58 | B16: ='Raw Data'!H3 -> 0.1511111111 | C16: ='Raw Data'!I3 -> 0 | D16: ='Raw Data'!J3 -> -0.2533333333 | E16: ='Raw Data'!K3 -> -0.4333333333 | F16: ='Raw Data'!L3 -> 0.3977777778
A17: 60 | B17: ='Raw Data'!H14 -> 0.0971659919 | C17: ='Raw Data'!I14 -> 0 | D17: ='Raw Data'!J14 -> -0.3137651822 | E17: ='Raw Data'!K14 -> 1.37854251 | F17: ='Raw Data'!L14 -> -0.5971659919
A18: 88 | B18: ='Raw Data'!H25 -> 3.325358852 | C18: ='Raw Data'!I25 -> 0 | D18: ='Raw Data'!J25 -> 1.866028708 | E18: ='Raw Data'!K25 -> 2.301435407 | F18: ='Raw Data'!L25 -> 0.2918660287
A19: 89 | B19: ='Raw Data'!H36 -> 0.4390243902 | C19: ='Raw Data'!I36 -> 0 | D19: ='Raw Data'!J36 -> 1.289198606 | E19: ='Raw Data'!K36 -> 0.7351916376 | F19: ='Raw Data'!L36 -> 0.2961672474
A20: 163 | B20: ='Raw Data'!H47 -> 0.3026819923 | C20: ='Raw Data'!I47 -> 0 | D20: ='Raw Data'!J47 -> -0.08812260536 | E20: ='Raw Data'!K47 -> -0.2394636015 | F20: ='Raw Data'!L47 -> -0.3275862069
A21: 214 | B21: ='Raw Data'!H58 -> 0.1624758221 | C21: ='Raw Data'!I58 -> 0 | D21: ='Raw Data'!J58 -> 0.2882011605 | E21: ='Raw Data'!K58 -> -0.2282398453 | F21: ='Raw Data'!L58 -> 0.1044487427
A22: 219 | B22: ='Raw Data'!H69 -> -0.3143712575 | C22: ='Raw Data'!I69 -> 0 | D22: ='Raw Data'!J69 -> -0.6362275449 | E22: ='Raw Data'!K69 -> -0.2694610778 | F22: ='Raw Data'!L69 -> -0.08832335329
A23: 292 | B23: ='Raw Data'!H80 -> 0.5329341317 | C23: ='Raw Data'!I80 -> 0 | D23: ='Raw Data'!J80 -> 0.4341317365 | E23: ='Raw Data'!K80 -> 0.4790419162 | F23: ='Raw Data'!L80 -> -0.0119760479
A24: 345 | B24: ='Raw Data'!H91 -> -0.9094269871 | C24: ='Raw Data'!I91 -> 0 | D24: ='Raw Data'!J91 -> -0.4695009242 | E24: ='Raw Data'!K91 -> -0.1534195933 | F24: ='Raw Data'!L91 -> -0.1293900185
A25: 348 | B25: ='Raw Data'!H102 -> 0.5570469799 | C25: ='Raw Data'!I102 -> 0 | D25: ='Raw Data'!J102 -> -0.485458613 | E25: ='Raw Data'!K102 -> -0.5906040268 | F25: ='Raw Data'!L102 -> 0.9642058166
A26: 918 | B26: ='Raw Data'!H113 -> -0.4082644628 | C26: ='Raw Data'!I113 -> 0 | D26: ='Raw Data'!J113 -> 0.6479338843 | E26: ='Raw Data'!K113 -> 0.1900826446 | F26: ='Raw Data'!L113 -> 0.2776859504
A27: 921 | B27: ='Raw Data'!H124 -> 24.19047619 | C27: ='Raw Data'!I124 -> 0 | D27: ='Raw Data'!J124 -> 11.80952381 | E27: ='Raw Data'!K124 -> 4.714285714 | F27: ='Raw Data'!L124 -> 12.85714286
D28: =_xlfn.T.TEST($C16:$C27,D16:D27,2,1) -> 0.2613668887 | E28: =_xlfn.T.TEST($C16:$C27,E16:E27,2,1) -> 0.1652675078 | F28: =_xlfn.T.TEST($C16:$C27,F16:F27,2,1) -> 0.2971231437
A29: BM3
A30: 58 | B30: ='Raw Data'!H4 -> 0.03389830508 | C30: ='Raw Data'!I4 -> 0 | D30: ='Raw Data'!J4 -> -0.07344632768 | E30: ='Raw Data'!K4 -> 0.3559322034 | F30: ='Raw Data'!L4 -> 0.1723163842
A31: 60 | B31: ='Raw Data'!H15 -> -0.1990407674 | C31: ='Raw Data'!I15 -> 0 | D31: ='Raw Data'!J15 -> -0.1462829736 | E31: ='Raw Data'!K15 -> -0.01918465228 | F31: ='Raw Data'!L15 -> 0.7122302158
A32: 88 | B32: ='Raw Data'!H26 -> -0.334939759 | C32: ='Raw Data'!I26 -> 0 | D32: ='Raw Data'!J26 -> 0.3084337349 | E32: ='Raw Data'!K26 -> 0.08915662651 | F32: ='Raw Data'!L26 -> 0.06506024096
A33: 89
A34: 163 | B34: ='Raw Data'!H48 -> 0.5337078652 | C34: ='Raw Data'!I48 -> 0 | D34: ='Raw Data'!J48 -> 1.095505618 | E34: ='Raw Data'!K48 -> 1.466292135 | F34: ='Raw Data'!L48 -> 1.539325843
A35: 214 | B35: ='Raw Data'!H59 -> -0.5107361963 | C35: ='Raw Data'!I59 -> 0 | D35: ='Raw Data'!J59 -> -0.6457055215 | E35: ='Raw Data'!K59 -> -0.5061349693 | F35: ='Raw Data'!L59 -> -0.1687116564
A36: 219 | B36: ='Raw Data'!H70 -> 0.08049535604 | C36: ='Raw Data'!I70 -> 0 | D36: ='Raw Data'!J70 -> -0.08978328173 | E36: ='Raw Data'!K70 -> -0.1393188854 | F36: ='Raw Data'!L70 -> -0.04953560372
A37: 292 | B37: ='Raw Data'!H81 -> -0.3667334669 | C37: ='Raw Data'!I81 -> 0 | D37: ='Raw Data'!J81 -> -0.1482965932 | E37: ='Raw Data'!K81 -> 0.02004008016 | F37: ='Raw Data'!L81 -> -0.5791583166
A38: 345 | B38: ='Raw Data'!H92 -> 0.4448529412 | C38: ='Raw Data'!I92 -> 0 | D38: ='Raw Data'!J92 -> -0.1654411765 | E38: ='Raw Data'!K92 -> -0.02205882353 | F38: ='Raw Data'!L92 -> 0.1102941176
A39: 348 | B39: ='Raw Data'!H103 -> 0.623880597 | C39: ='Raw Data'!I103 -> 0 | D39: ='Raw Data'!J103 -> -0.1910447761 | E39: ='Raw Data'!K103 -> 0.4656716418 | F39: ='Raw Data'!L103 -> 0.9462686567
A40: 918 | B40: ='Raw Data'!H114 -> 0.5041551247 | C40: ='Raw Data'!I114 -> 0 | D40: ='Raw Data'!J114 -> -0.4155124654 | E40: ='Raw Data'!K114 -> 0.06648199446 | F40: ='Raw Data'!L114 -> 0.1218836565
A41: 921 | B41: ='Raw Data'!H125 -> 1.349514563 | C41: ='Raw Data'!I125 -> 0 | D41: ='Raw Data'!J125 -> 1.941747573 | E41: ='Raw Data'!K125 -> 3.514563107 | F41: ='Raw Data'!L125 -> 0.7184466019
D42: =_xlfn.T.TEST($C30:$C41,D30:D41,2,1) -> 0.566067003 | E42: =_xlfn.T.TEST($C30:$C41,E30:E41,2,1) -> 0.1854826279 | F42: =_xlfn.T.TEST($C30:$C41,F30:F41,2,1) -> 0.09923466615
A43: BM4
A44: 58
A45: 60
A46: 88
A47: 89
A48: 163
A49: 214
A50: 219
A51: 292
A52: 345
A53: 348
A54: 918
A55: 921
D56: =_xlfn.T.TEST($C44:$C55,D44:D55,2,1) ->  | E56: =_xlfn.T.TEST($C44:$C55,E44:E55,2,1) ->  | F56: =_xlfn.T.TEST($C44:$C55,F44:F55,2,1) -> 
A57: BM5
A58: 58 | B58: ='Raw Data'!H6 -> -0.3630705394 | C58: ='Raw Data'!I6 -> 0 | D58: ='Raw Data'!J6 -> -0.2821576763 | E58: ='Raw Data'!K6 -> -0.1649377593 | F58: ='Raw Data'!L6 -> -0.3039419087
A59: 60 | B59: ='Raw Data'!H17 -> 0.150887574 | C59: ='Raw Data'!I17 -> 0 | D59: ='Raw Data'!J17 -> 0.548816568 | E59: ='Raw Data'!K17 -> -0.325443787 | F59: ='Raw Data'!L17 -> -0.8920118343
A60: 88 | B60: ='Raw Data'!H28 -> -0.1755888651 | C60: ='Raw Data'!I28 -> 0 | D60: ='Raw Data'!J28 -> -0.3211991435 | E60: ='Raw Data'!K28 -> -0.6466809422 | F60: ='Raw Data'!L28 -> 0.3683083512
A61: 89 | B61: ='Raw Data'!H39 -> 0.3585164835 | C61: ='Raw Data'!I39 -> 0 | D61: ='Raw Data'!J39 -> 0.05494505495 | E61: ='Raw Data'!K39 -> 0.3186813187 | F61: ='Raw Data'!L39 -> -0.2348901099
A62: 163 | B62: ='Raw Data'!H50 -> 0.07112970711 | C62: ='Raw Data'!I50 -> 0 | D62: ='Raw Data'!J50 -> -0.3472803347 | E62: ='Raw Data'!K50 -> -0.5491631799 | F62: ='Raw Data'!L50 -> 0.02719665272
A63: 214 | B63: ='Raw Data'!H61 -> 0.4934640523 | C63: ='Raw Data'!I61 -> 0 | D63: ='Raw Data'!J61 -> 0.7026143791 | E63: ='Raw Data'!K61 -> 0.3300653595 | F63: ='Raw Data'!L61 -> -0.2614379085
A64: 219 | B64: ='Raw Data'!H72 -> -0.4399323181 | C64: ='Raw Data'!I72 -> 0 | D64: ='Raw Data'!J72 -> -0.3840947547 | E64: ='Raw Data'!K72 -> -0.4670050761 | F64: ='Raw Data'!L72 -> -0.1692047377
A65: 292 | B65: ='Raw Data'!H83 -> 0.3610169492 | C65: ='Raw Data'!I83 -> 0 | D65: ='Raw Data'!J83 -> -0.1 | E65: ='Raw Data'!K83 -> -0.5305084746 | F65: ='Raw Data'!L83 -> 0.5305084746
A66: 345 | B66: ='Raw Data'!H94 -> 0.3738317757 | C66: ='Raw Data'!I94 -> 0 | D66: ='Raw Data'!J94 -> 0.3052959502 | E66: ='Raw Data'!K94 -> 0.3146417445 | F66: ='Raw Data'!L94 -> -0.2211838006
A67: 348 | B67: ='Raw Data'!H105 -> -0.2291262136 | C67: ='Raw Data'!I105 -> 0 | D67: ='Raw Data'!J105 -> 0.5873786408 | E67: ='Raw Data'!K105 -> -0.0145631068 | F67: ='Raw Data'!L105 -> -0.545631068
A68: 918 | B68: ='Raw Data'!H116 -> -0.264957265 | C68: ='Raw Data'!I116 -> 0 | D68: ='Raw Data'!J116 -> 0.1666666667 | E68: ='Raw Data'!K116 -> 0.4658119658 | F68: ='Raw Data'!L116 -> 0.5598290598
A69: 921 | B69: ='Raw Data'!H127 -> -0.3601440576 | C69: ='Raw Data'!I127 -> 0 | D69: ='Raw Data'!J127 -> -0.1596638655 | E69: ='Raw Data'!K127 -> -0.4381752701 | F69: ='Raw Data'!L127 -> 0.5786314526
D70: =_xlfn.T.TEST($C58:$C69,D58:D69,2,1) -> 0.582576742 | E70: =_xlfn.T.TEST($C58:$C69,E58:E69,2,1) -> 0.2520396611 | F70: =_xlfn.T.TEST($C58:$C69,F58:F69,2,1) -> 0.7354658344
A71: BM6
A72: 58 | B72: ='Raw Data'!H7 -> 1.783269962 | C72: ='Raw Data'!I7 -> 0 | D72: ='Raw Data'!J7 -> 0.7300380228 | E72: ='Raw Data'!K7 -> 0.03802281369 | F72: ='Raw Data'!L7 -> 1.513307985
A73: 60 | B73: ='Raw Data'!H18 -> 0.05592105263 | C73: ='Raw Data'!I18 -> 0 | D73: ='Raw Data'!J18 -> 1.032894737 | E73: ='Raw Data'!K18 -> 1.976973684 | F73: ='Raw Data'!L18 -> -0.4046052632
A74: 88 | B74: ='Raw Data'!H29 -> 0.4936170213 | C74: ='Raw Data'!I29 -> 0 | D74: ='Raw Data'!J29 -> -0.1212765957 | E74: ='Raw Data'!K29 -> 0.5127659574 | F74: ='Raw Data'!L29 -> -0.1553191489
A75: 89
A76: 163
A77: 214 | B77: ='Raw Data'!H62 -> -0.1778741866 | C77: ='Raw Data'!I62 -> 0 | D77: ='Raw Data'!J62 -> 0.3926247289 | E77: ='Raw Data'!K62 -> 0.09219088937 | F77: ='Raw Data'!L62 -> -0.1214750542
A78: 219 | B78: ='Raw Data'!H73 -> -0.05943536404 | C78: ='Raw Data'!I73 -> 0 | D78: ='Raw Data'!J73 -> -0.1589895988 | E78: ='Raw Data'!K73 -> -0.1827637444 | F78: ='Raw Data'!L73 -> -0.1961367013
A79: 292 | B79: ='Raw Data'!H84 -> -0.291626564 | C79: ='Raw Data'!I84 -> 0 | D79: ='Raw Data'!J84 -> -0.291626564 | E79: ='Raw Data'!K84 -> 0.3724735322 | F79: ='Raw Data'!L84 -> -0.5591915303
A80: 345 | B80: ='Raw Data'!H95 -> -0.2434158021 | C80: ='Raw Data'!I95 -> 0 | D80: ='Raw Data'!J95 -> 0.1867517957 | E80: ='Raw Data'!K95 -> -0.01596169194 | F80: ='Raw Data'!L95 -> 0.07501995211
A81: 348 | B81: ='Raw Data'!H106 -> 0.1105651106 | C81: ='Raw Data'!I106 -> 0 | D81: ='Raw Data'!J106 -> -0.07493857494 | E81: ='Raw Data'!K106 -> 0.05651105651 | F81: ='Raw Data'!L106 -> -0.1081081081
A82: 918 | B82: ='Raw Data'!H117 -> 0.3723404255 | C82: ='Raw Data'!I117 -> 0 | D82: ='Raw Data'!J117 -> -0.3212765957 | E82: ='Raw Data'!K117 -> -0.3127659574 | F82: ='Raw Data'!L117 -> 0.2382978723
A83: 921 | B83: ='Raw Data'!H128 -> -0.1712538226 | C83: ='Raw Data'!I128 -> 0 | D83: ='Raw Data'!J128 -> 0.5412844037 | E83: ='Raw Data'!K128 -> 0.2431192661 | F83: ='Raw Data'!L128 -> -0.3944954128
D84: =_xlfn.T.TEST($C72:$C83,D72:D83,2,1) -> 0.2253437855 | E84: =_xlfn.T.TEST($C72:$C83,E72:E83,2,1) -> 0.2057351949 | F84: =_xlfn.T.TEST($C72:$C83,F72:F83,2,1) -> 0.9526919322
A85: BM7
A86: 58 | B86: ='Raw Data'!H8 -> 0.1108247423 | C86: ='Raw Data'!I8 -> 0 | D86: ='Raw Data'!J8 -> -0.03865979381 | E86: ='Raw Data'!K8 -> 0.9097938144 | F86: ='Raw Data'!L8 -> 0.3067010309
A87: 60 | B87: ='Raw Data'!H19 -> -0.3012345679 | C87: ='Raw Data'!I19 -> 0 | D87: ='Raw Data'!J19 -> -0.1283950617 | E87: ='Raw Data'!K19 -> 0.2074074074 | F87: ='Raw Data'!L19 -> 0.3012345679
A88: 88 | B88: ='Raw Data'!H30 -> -0.5212355212 | C88: ='Raw Data'!I30 -> 0 | D88: ='Raw Data'!J30 -> 0.01930501931 | E88: ='Raw Data'!K30 -> -0.2239382239 | F88: ='Raw Data'!L30 -> -0.1911196911
A89: 89 | B89: ='Raw Data'!H41 -> -0.2586750789 | C89: ='Raw Data'!I41 -> 0 | D89: ='Raw Data'!J41 -> 0.7192429022 | E89: ='Raw Data'!K41 -> 0.2776025237 | F89: ='Raw Data'!L41 -> 0.596214511
A90: 163 | B90: ='Raw Data'!H52 -> 0.9736842105 | C90: ='Raw Data'!I52 -> 0 | D90: ='Raw Data'!J52 -> 1.956140351 | E90: ='Raw Data'!K52 -> 2.48245614 | F90: ='Raw Data'!L52 -> 4.605263158
A91: 214 | B91: ='Raw Data'!H63 -> -0.5271149675 | C91: ='Raw Data'!I63 -> 0 | D91: ='Raw Data'!J63 -> -0.3600867679 | E91: ='Raw Data'!K63 -> -0.2537960954 | F91: ='Raw Data'!L63 -> 0.3492407809
A92: 219 | B92: ='Raw Data'!H74 -> 0.3378076063 | C92: ='Raw Data'!I74 -> 0 | D92: ='Raw Data'!J74 -> 0.7024608501 | E92: ='Raw Data'!K74 -> 1.091722595 | F92: ='Raw Data'!L74 -> 0.04921700224
A93: 292 | B93: ='Raw Data'!H85 -> 0.02369668246 | C93: ='Raw Data'!I85 -> 0 | D93: ='Raw Data'!J85 -> 0.1161137441 | E93: ='Raw Data'!K85 -> 0.2061611374 | F93: ='Raw Data'!L85 -> -0.2796208531
A94: 345 | B94: ='Raw Data'!H96 -> 0.8057742782 | C94: ='Raw Data'!I96 -> 0 | D94: ='Raw Data'!J96 -> -0.5039370079 | E94: ='Raw Data'!K96 -> -0.3569553806 | F94: ='Raw Data'!L96 -> -0.2362204724
A95: 348 | B95: ='Raw Data'!H107 -> -0.1006493506 | C95: ='Raw Data'!I107 -> 0 | D95: ='Raw Data'!J107 -> -0.1558441558 | E95: ='Raw Data'!K107 -> 0.2467532468 | F95: ='Raw Data'!L107 -> 0.2727272727
A96: 918 | B96: ='Raw Data'!H118 -> 2.379679144 | C96: ='Raw Data'!I118 -> 0 | D96: ='Raw Data'!J118 -> 0.2299465241 | E96: ='Raw Data'!K118 -> 0.550802139 | F96: ='Raw Data'!L118 -> 0.6310160428
A97: 921 | B97: ='Raw Data'!H129 -> -0.09677419355 | C97: ='Raw Data'!I129 -> 0 | D97: ='Raw Data'!J129 -> -0.3440860215 | E97: ='Raw Data'!K129 -> 2.64516129 | F97: ='Raw Data'!L129 -> 0.9247311828
D98: =_xlfn.T.TEST($C86:$C97,D86:D97,2,1) -> 0.3657354963 | E98: =_xlfn.T.TEST($C86:$C97,E86:E97,2,1) -> 0.04532062172 | F98: =_xlfn.T.TEST($C86:$C97,F86:F97,2,1) -> 0.1347414852
A99: BM8
A100: 58 | B100: ='Raw Data'!H9 -> -0.1048513302 | C100: ='Raw Data'!I9 -> 0 | D100: ='Raw Data'!J9 -> 0.5211267606 | E100: ='Raw Data'!K9 -> 0.1611893584 | F100: ='Raw Data'!L9 -> -0.2456964006
A101: 60 | B101: ='Raw Data'!H20 -> 0.1481888035 | C101: ='Raw Data'!I20 -> 0 | D101: ='Raw Data'!J20 -> -0.1866081229 | E101: ='Raw Data'!K20 -> -0.579582876 | F101: ='Raw Data'!L20 -> -0.4489571899
A102: 88 | B102: ='Raw Data'!H31 -> 1.431818182 | C102: ='Raw Data'!I31 -> 0 | D102: ='Raw Data'!J31 -> -0.1095041322 | E102: ='Raw Data'!K31 -> 1.132231405 | F102: ='Raw Data'!L31 -> 0.2417355372
A103: 89 | B103: ='Raw Data'!H42 -> 0.1015384615 | C103: ='Raw Data'!I42 -> 0 | D103: ='Raw Data'!J42 -> -0.2974358974 | E103: ='Raw Data'!K42 -> -0.1128205128 | F103: ='Raw Data'!L42 -> -0.2441025641
A104: 163 | B104: ='Raw Data'!H53 -> 0.2578548212 | C104: ='Raw Data'!I53 -> 0 | D104: ='Raw Data'!J53 -> -0.1581798483 | E104: ='Raw Data'!K53 -> -0.4691224269 | F104: ='Raw Data'!L53 -> -0.3651137595
A105: 214 | B105: ='Raw Data'!H64 -> 0.6292134831 | C105: ='Raw Data'!I64 -> 0 | D105: ='Raw Data'!J64 -> 0.6243980738 | E105: ='Raw Data'!K64 -> 0.4863563403 | F105: ='Raw Data'!L64 -> 0.03852327448
A106: 219 | B106: ='Raw Data'!H75 -> -0.3451043339 | C106: ='Raw Data'!I75 -> 0 | D106: ='Raw Data'!J75 -> -0.5024077047 | E106: ='Raw Data'!K75 -> -0.5714285714 | F106: ='Raw Data'!L75 -> -0.05457463884
A107: 292 | B107: ='Raw Data'!H86 -> -0.06027060271 | C107: ='Raw Data'!I86 -> 0 | D107: ='Raw Data'!J86 -> 0.0270602706 | E107: ='Raw Data'!K86 -> -0.344403444 | F107: ='Raw Data'!L86 -> 0.4464944649
A108: 345 | B108: ='Raw Data'!H97 -> -0.4403669725 | C108: ='Raw Data'!I97 -> 0 | D108: ='Raw Data'!J97 -> -0.02385321101 | E108: ='Raw Data'!K97 -> 0.2403669725 | F108: ='Raw Data'!L97 -> -0.1706422018
A109: 348 | B109: ='Raw Data'!H108 -> -0.1462264151 | C109: ='Raw Data'!I108 -> 0 | D109: ='Raw Data'!J108 -> -0.3089622642 | E109: ='Raw Data'!K108 -> -0.3867924528 | F109: ='Raw Data'!L108 -> 0.2712264151
A110: 918 | B110: ='Raw Data'!H119 -> -0.2152317881 | C110: ='Raw Data'!I119 -> 0 | D110: ='Raw Data'!J119 -> 0.3228476821 | E110: ='Raw Data'!K119 -> 0.2350993377 | F110: ='Raw Data'!L119 -> 0.02317880795
A111: 921 | B111: ='Raw Data'!H130 -> -0.1161161161 | C111: ='Raw Data'!I130 -> 0 | D111: ='Raw Data'!J130 -> -0.1591591592 | E111: ='Raw Data'!K130 -> -0.4274274274 | F111: ='Raw Data'!L130 -> -0.2782782783
D112: =_xlfn.T.TEST($C100:$C111,D100:D111,2,1) -> 0.8368331274 | E112: =_xlfn.T.TEST($C100:$C111,E100:E111,2,1) -> 0.7303792046 | F112: =_xlfn.T.TEST($C100:$C111,F100:F111,2,1) -> 0.4305702515
A113: BM9
A114: 58 | B114: ='Raw Data'!H10 -> -0.3954198473 | C114: ='Raw Data'!I10 -> 0 | D114: ='Raw Data'!J10 -> -0.106870229 | E114: ='Raw Data'!K10 -> -0.4458015267 | F114: ='Raw Data'!L10 -> -0.4442748092
A115: 60 | B115: ='Raw Data'!H21 -> -0.2259970458 | C115: ='Raw Data'!I21 -> 0 | D115: ='Raw Data'!J21 -> -0.4579025111 | E115: ='Raw Data'!K21 -> -0.6927621861 | F115: ='Raw Data'!L21 -> 0.1831610044
A116: 88 | B116: ='Raw Data'!H32 -> -0.7536585366 | C116: ='Raw Data'!I32 -> 0 | D116: ='Raw Data'!J32 -> -0.5256097561 | E116: ='Raw Data'!K32 -> -0.6902439024 | F116: ='Raw Data'!L32 -> -0.35
A117: 89 | B117: ='Raw Data'!H43 -> -0.5168539326 | C117: ='Raw Data'!I43 -> 0 | D117: ='Raw Data'!J43 -> -0.5801838611 | E117: ='Raw Data'!K43 -> -0.4678243105 | F117: ='Raw Data'!L43 -> -0.4371807967
A118: 163 | B118: ='Raw Data'!H54 -> -0.6625194401 | C118: ='Raw Data'!I54 -> 0 | D118: ='Raw Data'!J54 -> -0.1912908243 | E118: ='Raw Data'!K54 -> 0.09953343701 | F118: ='Raw Data'!L54 -> -0.367029549
A119: 214 | B119: ='Raw Data'!H65 -> 0.532808399 | C119: ='Raw Data'!I65 -> 0 | D119: ='Raw Data'!J65 -> -0.2782152231 | E119: ='Raw Data'!K65 -> 0.343832021 | F119: ='Raw Data'!L65 -> 0.2257217848
A120: 219 | B120: ='Raw Data'!H76 -> 0.3847926267 | C120: ='Raw Data'!I76 -> 0 | D120: ='Raw Data'!J76 -> 0.3686635945 | E120: ='Raw Data'!K76 -> 0.1152073733 | F120: ='Raw Data'!L76 -> 0.267281106
A121: 292 | B121: ='Raw Data'!H87 -> 0.1113924051 | C121: ='Raw Data'!I87 -> 0 | D121: ='Raw Data'!J87 -> 0.3974683544 | E121: ='Raw Data'!K87 -> -0.4430379747 | F121: ='Raw Data'!L87 -> 0.4759493671
A122: 345 | B122: ='Raw Data'!H98 -> 0.4899135447 | C122: ='Raw Data'!I98 -> 0 | D122: ='Raw Data'!J98 -> 0.4438040346 | E122: ='Raw Data'!K98 -> 0.2536023055 | F122: ='Raw Data'!L98 -> 0.6455331412
A123: 348 | B123: ='Raw Data'!H109 -> 0.06841046278 | C123: ='Raw Data'!I109 -> 0 | D123: ='Raw Data'!J109 -> 0.08450704225 | E123: ='Raw Data'!K109 -> 0.3521126761 | F123: ='Raw Data'!L109 -> -0.5211267606
A124: 918 | B124: ='Raw Data'!H120 -> -0.3284552846 | C124: ='Raw Data'!I120 -> 0 | D124: ='Raw Data'!J120 -> -0.2731707317 | E124: ='Raw Data'!K120 -> -0.2780487805 | F124: ='Raw Data'!L120 -> -0.2634146341
A125: 921 | B125: ='Raw Data'!H131 -> -0.3673110721 | C125: ='Raw Data'!I131 -> 0 | D125: ='Raw Data'!J131 -> -0.4024604569 | E125: ='Raw Data'!K131 -> -0.2926186292 | F125: ='Raw Data'!L131 -> -0.3400702988
D126: =_xlfn.T.TEST($C114:$C125,D114:D125,2,1) -> 0.2578451766 | E126: =_xlfn.T.TEST($C114:$C125,E114:E125,2,1) -> 0.141123476 | F126: =_xlfn.T.TEST($C114:$C125,F114:F125,2,1) -> 0.5259499699
A127: BM10
A128: 58 | B128: ='Raw Data'!H11 -> 0.06403013183 | C128: ='Raw Data'!I11 -> 0 | D128: ='Raw Data'!J11 -> -0.07156308851 | E128: ='Raw Data'!K11 -> -0.1770244821 | F128: ='Raw Data'!L11 -> 0.04708097928
A129: 60 | B129: ='Raw Data'!H22 -> 0.8779069767 | C129: ='Raw Data'!I22 -> 0 | D129: ='Raw Data'!J22 -> 1.209302326 | E129: ='Raw Data'!K22 -> 0.5523255814 | F129: ='Raw Data'!L22 -> 3.139534884
A130: 88 | B130: ='Raw Data'!H33 -> -0.4817518248 | C130: ='Raw Data'!I33 -> 0 | D130: ='Raw Data'!J33 -> 0.1922141119 | E130: ='Raw Data'!K33 -> -0.1897810219 | F130: ='Raw Data'!L33 -> 0.1800486618
A131: 89 | B131: ='Raw Data'!H44 -> -0.4228486647 | C131: ='Raw Data'!I44 -> 0 | D131: ='Raw Data'!J44 -> -0.04302670623 | E131: ='Raw Data'!K44 -> -0.1557863501 | F131: ='Raw Data'!L44 -> 0.6172106825
A132: 163 | B132: ='Raw Data'!H55 -> -0.139275766 | C132: ='Raw Data'!I55 -> 0 | D132: ='Raw Data'!J55 -> 0.7520891365 | E132: ='Raw Data'!K55 -> 1.027855153 | F132: ='Raw Data'!L55 -> 0.6295264624
A133: 214 | B133: ='Raw Data'!H66 -> -0.1424100156 | C133: ='Raw Data'!I66 -> 0 | D133: ='Raw Data'!J66 -> -0.6604068858 | E133: ='Raw Data'!K66 -> -0.08607198748 | F133: ='Raw Data'!L66 -> -0.04225352113
A134: 219 | B134: ='Raw Data'!H77 -> 1.258426966 | C134: ='Raw Data'!I77 -> 0 | D134: ='Raw Data'!J77 -> 1.471910112 | E134: ='Raw Data'!K77 -> 0.5561797753 | F134: ='Raw Data'!L77 -> 0.7191011236
A135: 292 | B135: ='Raw Data'!H88 -> 0.217603912 | C135: ='Raw Data'!I88 -> 0 | D135: ='Raw Data'!J88 -> 0.1540342298 | E135: ='Raw Data'!K88 -> 0.3031784841 | F135: ='Raw Data'!L88 -> 0.3031784841
A136: 345 | B136: ='Raw Data'!H99 -> 2.626373626 | C136: ='Raw Data'!I99 -> 0 | D136: ='Raw Data'!J99 -> 0.08791208791 | E136: ='Raw Data'!K99 -> 0.4395604396 | F136: ='Raw Data'!L99 -> 0.1538461538
A137: 348 | B137: ='Raw Data'!H110 -> -0.6844783715 | C137: ='Raw Data'!I110 -> 0 | D137: ='Raw Data'!J110 -> -0.4554707379 | E137: ='Raw Data'!K110 -> -0.2493638677 | F137: ='Raw Data'!L110 -> -0.4631043257
A138: 918 | B138: ='Raw Data'!H121 -> 0.02822580645 | C138: ='Raw Data'!I121 -> 0 | D138: ='Raw Data'!J121 -> 0.2580645161 | E138: ='Raw Data'!K121 -> 0.564516129 | F138: ='Raw Data'!L121 -> -0.6653225806
A139: 921 | B139: ='Raw Data'!H132 -> -0.1839622642 | C139: ='Raw Data'!I132 -> 0 | D139: ='Raw Data'!J132 -> -0.1603773585 | E139: ='Raw Data'!K132 -> 0.6933962264 | F139: ='Raw Data'!L132 -> -0.5377358491
D140: =_xlfn.T.TEST($C128:$C139,D128:D139,2,1) -> 0.2370021319 | E140: =_xlfn.T.TEST($C128:$C139,E128:E139,2,1) -> 0.04935061935 | F140: =_xlfn.T.TEST($C128:$C139,F128:F139,2,1) -> 0.2607561408
